[Event "Henry Chilufya Mem 2017"]
[Site "Mansa"]
[Date "2017.10.20"]
[Round "1.5"]
[White "Ssegwanyi, Arthur"]
[Black "Mwali, Chitumbo"]
[Result "0-1"]
[ECO "C45"]
[WhiteElo "2373"]
[BlackElo "2334"]
[Annotator "ChessBase"]
[PlyCount "88"]
[EventDate "2017.10.20"]
[EventType "swiss"]
[EventCountry "ZAM"]
[TimeControl "40/5400+30:1800+30"]

1. e4 e5 2. Nf3 Nc6 3. d4 exd4 4. Nxd4 Nf6 5. Nxc6 bxc6 6. e5 Qe7 7. Qe2 Nd5 8.
c4 Nb6 9. Nc3 a5 10. Qe4 g6 11. Bd3 Bg7 12. O-O O-O 13. Re1 Ba6 14. Bd2 Qc5 15.
Qh4 d5 16. Be3 Qb4 17. Bd4 Nxc4 18. a3 Qb8 19. Na4 Nb6 20. Nc5 Bxd3 21. Nxd3
Re8 22. Nc5 Qc8 23. Re3 Nc4 24. Rh3 h5 25. e6 Qd8 26. exf7+ Kxf7 27. Qf4+ Kg8
28. Bxg7 Kxg7 29. Rf1 Qd6 30. Qd4+ Qe5 31. Qh4 Qf6 32. Qg3 Re7 33. b3 Nd2 34.
Rd1 Rae8 35. Nd3 Nxb3 36. Rxh5 Nd4 37. Kf1 Nf5 38. Rxf5 Qxf5 39. Nf4 Qc2 40.
Ra1 Qc4+ 41. Nd3 Qc3 42. Rd1 Qc2 43. Ra1 Qe2+ 44. Kg1 Qe1+ 0-1

[Event "Henry Chilufya Mem 2017"]
[Site "Mansa"]
[Date "2017.10.20"]
[Round "2.1"]
[White "Chumfwa, Stanley"]
[Black "Mwali, Chitumbo"]
[Result "1/2-1/2"]
[ECO "E11"]
[WhiteElo "2278"]
[BlackElo "2334"]
[Annotator "ChessBase"]
[PlyCount "33"]
[EventDate "2017.10.20"]
[EventType "swiss"]
[EventCountry "ZAM"]
[SourceTitle "playchess.com"]
[Source "ChessBase"]
[SourceQuality "1"]
[TimeControl "40/5400+30:1800+30"]

1. d4 Nf6 2. c4 e6 3. Nf3 Bb4+ 4. Nbd2 b6 5. a3 Bxd2+ 6. Bxd2 Ne4 7. Bc1 O-O 8.
e3 Bb7 9. b3 f5 10. Bb2 d6 11. Be2 Nd7 12. O-O Rf6 13. d5 Rg6 14. g3 e5 15. Kh1
Rh6 16. Kg1 Rg6 17. b4 1/2-1/2

[Event "Henry Chilufya Mem 2017"]
[Site "Mansa"]
[Date "2017.10.20"]
[Round "2.2"]
[White "Wanyama, Harold"]
[Black "Ssegwanyi, Arthur"]
[Result "1-0"]
[ECO "A13"]
[WhiteElo "2290"]
[BlackElo "2373"]
[Annotator "ChessBase"]
[PlyCount "120"]
[EventDate "2017.10.20"]
[EventType "swiss"]
[EventCountry "ZAM"]
[SourceTitle "playchess.com"]
[Source "ChessBase"]
[SourceQuality "1"]
[TimeControl "40/5400+30:1800+30"]

1. Nf3 Nf6 2. c4 e6 3. g3 d5 4. b3 c5 5. cxd5 Qxd5 6. Nc3 Qh5 7. Bg2 Be7 8. h3
Nd5 9. Nxd5 Qxd5 10. Ba3 Qd8 11. O-O Nc6 12. Qc2 Qa5 13. Bb2 f6 14. d4 Bd7 15.
Rfd1 Rd8 16. a3 O-O 17. dxc5 Qxc5 18. Bc3 Bc8 19. Rdc1 Qb6 20. b4 e5 21. Qb3+
Kh8 22. e3 Nb8 23. a4 Be6 24. Qb1 Na6 25. b5 Nc5 26. Bb4 Rc8 27. Ra3 Qd8 28.
Rac3 b6 29. Kh2 Qd7 30. e4 Rfd8 31. Nh4 g6 32. Nf3 Qb7 33. a5 Qd7 34. Bf1 h5
35. h4 Bf8 36. Be2 Qe8 37. R1c2 Bd7 38. Ba3 Rb8 39. Bxc5 bxc5 40. b6 axb6 41.
axb6 Qe6 42. Rb2 Qh3+ 43. Kg1 Bc6 44. Bf1 Qg4 45. Re2 Rb7 46. Kh2 Qd7 47. Nd2
Bb5 48. Nc4 Bxc4 49. Rxc4 Rdb8 50. Qa2 Rxb6 51. Ra4 Qd1 52. Bg2 Rb1 53. Ra7
Qg1+ 54. Kh3 g5 55. hxg5 fxg5 56. Qf7 g4+ 57. Kh4 R1b7 58. Rxb7 Rxb7 59. Qxb7
Qxg2 60. Kg5 Qg1 1-0

[Event "Henry Chilufya Mem 2017"]
[Site "Mansa"]
[Date "2017.10.21"]
[Round "3.4"]
[White "Ssegwanyi, Arthur"]
[Black "Bwalya, Gillan"]
[Result "1-0"]
[ECO "B99"]
[WhiteElo "2373"]
[BlackElo "2291"]
[Annotator "ChessBase"]
[PlyCount "111"]
[EventDate "2017.10.20"]
[EventType "swiss"]
[EventCountry "ZAM"]
[SourceTitle "playchess.com"]
[Source "ChessBase"]
[SourceQuality "1"]
[TimeControl "40/5400+30:1800+30"]

1. e4 c5 2. Nf3 d6 3. d4 cxd4 4. Nxd4 Nf6 5. Nc3 a6 6. Bg5 e6 7. f4 Be7 8. Qf3
Qc7 9. O-O-O Nbd7 10. g4 Rb8 11. Bxf6 gxf6 12. Bd3 Qc5 13. Nb3 Qa7 14. e5 fxe5
15. f5 Bg5+ 16. Kb1 Qe3 17. Qg2 Bh4 18. Rhf1 Nf6 19. Nd2 Qh6 20. Nc4 Ke7 21.
Qg1 b6 22. Nxb6 Nd7 23. Nc4 Bg5 24. fxe6 fxe6 25. Nxd6 Be3 26. Nf5+ exf5 27.
Nd5+ Ke8 28. Nxe3 Qb6 29. b3 f4 30. Nc4 Qxg1 31. Rxg1 Ke7 32. Bf5 Rb5 33. Nd6
Nb6 34. Nxb5 Bxf5 35. gxf5 axb5 36. h4 Rf8 37. Rg7+ Kf6 38. Rg5 Nc8 39. Rd5 f3
40. Kc1 f2 41. Rd1 e4 42. Rf1 e3 43. Kd1 Ke5 44. Ke2 Kf4 45. Rd1 Ne7 46. f6 Nf5
47. Rxf5+ Kxf5 48. Kxe3 Rxf6 49. Kxf2 Ke4+ 50. Ke2 Rh6 51. c3 Ke5 52. Rd4 Rg6
53. Rb4 Rg2+ 54. Kf3 Rxa2 55. Rxb5+ Kf6 56. Kg4 1-0

[Event "Henry Chilufya Mem 2017"]
[Site "Mansa"]
[Date "2017.10.21"]
[Round "3.5"]
[White "Mwali, Chitumbo"]
[Black "Wanyama, Harold"]
[Result "1-0"]
[ECO "A15"]
[WhiteElo "2334"]
[BlackElo "2290"]
[Annotator "ChessBase"]
[PlyCount "76"]
[EventDate "2017.10.20"]
[EventType "swiss"]
[EventCountry "ZAM"]
[SourceTitle "playchess.com"]
[Source "ChessBase"]
[SourceQuality "1"]
[TimeControl "40/5400+30:1800+30"]

1. c4 Nf6 2. g3 g6 3. Bg2 Bg7 4. Nc3 e5 5. e4 O-O 6. Nge2 d6 7. O-O Nfd7 8. d3
Nc6 9. Be3 Nd4 10. Qd2 Nc5 11. Bg5 f6 12. Be3 f5 13. Bg5 Qd7 14. Nxd4 exd4 15.
Nd5 fxe4 16. Rae1 h6 17. Bxh6 e3 18. Bxe3 dxe3 19. Rxe3 Bh6 20. f4 c6 21. Ne7+
Kh7 22. d4 Na6 23. Qd3 Rf6 24. Rfe1 Bf8 25. g4 Qxg4 26. Rg3 Bf5 27. Qf1 Qh5 28.
Bf3 Qh4 29. Nxf5 Qxf4 30. Rh3+ Kg8 31. Bd5+ cxd5 32. Qxf4 Rxf5 33. Qg4 Rf7 34.
Re6 Nc7 35. Rxg6+ Bg7 36. Rg3 Ne8 37. h4 Rd8 38. h5 Kh7 1-0

[Event "Henry Chilufya Mem 2017"]
[Site "Mansa"]
[Date "2017.10.21"]
[Round "4.1"]
[White "Chumfwa, Stanley"]
[Black "Wanyama, Harold"]
[Result "0-1"]
[ECO "B43"]
[WhiteElo "2278"]
[BlackElo "2290"]
[Annotator "ChessBase"]
[PlyCount "86"]
[EventDate "2017.10.20"]
[EventType "swiss"]
[EventCountry "ZAM"]
[SourceTitle "playchess.com"]
[Source "ChessBase"]
[SourceQuality "1"]
[TimeControl "40/5400+30:1800+30"]

1. e4 c5 2. Nf3 e6 3. d4 cxd4 4. Nxd4 a6 5. Nc3 Qc7 6. Be2 Nf6 7. O-O Nc6 8.
Be3 h5 9. f4 d6 10. Kh1 Bd7 11. a4 Na5 12. Qd3 Rc8 13. Rad1 Be7 14. f5 Nc4 15.
Bc1 h4 16. fxe6 fxe6 17. Qh3 e5 18. Ne6 Bxe6 19. Qxe6 Nb6 20. Qf5 Qd7 21. Qg6+
Kd8 22. a5 Na4 23. Nxa4 Qxa4 24. b3 Qe8 25. Qxe8+ Kxe8 26. Bd3 Kd7 27. c4 Ke6
28. b4 Kf7 29. Bd2 Kg6 30. Rf3 Rhf8 31. Rdf1 Nd7 32. Rf5 Kh7 33. g4 hxg3 34.
hxg3 Kg6 35. Kg2 Nf6 36. R1f3 Rh8 37. Rf1 Ng4 38. Rh1 Rxh1 39. Kxh1 Rh8+ 40.
Kg1 Rh2 41. Be1 Rb2 42. Bf1 Bg5 43. Bh3 Be3+ 0-1

[Event "Henry Chilufya Mem 2017"]
[Site "Mansa"]
[Date "2017.10.21"]
[Round "4.2"]
[White "Bwalya, Gillan"]
[Black "Mwali, Chitumbo"]
[Result "1/2-1/2"]
[ECO "C35"]
[WhiteElo "2291"]
[BlackElo "2334"]
[Annotator "ChessBase"]
[PlyCount "31"]
[EventDate "2017.10.20"]
[EventType "swiss"]
[EventCountry "ZAM"]
[SourceTitle "playchess.com"]
[Source "ChessBase"]
[SourceQuality "1"]
[TimeControl "40/5400+30:1800+30"]

1. e4 e5 2. f4 exf4 3. Nf3 Be7 4. Bc4 Nf6 5. e5 Ng4 6. O-O Nc6 7. d4 d5 8. Bb5
O-O 9. h3 Ne3 10. Bxe3 fxe3 11. Qe2 f6 12. exf6 Bxf6 13. Qxe3 Bf5 14. Bxc6 bxc6
15. Nbd2 Qd6 16. c3 1/2-1/2

[Event "Henry Chilufya Mem 2017"]
[Site "Mansa"]
[Date "2017.10.21"]
[Round "4.3"]
[White "Phiri, Richmond"]
[Black "Ssegwanyi, Arthur"]
[Result "0-1"]
[ECO "A46"]
[WhiteElo "2290"]
[BlackElo "2373"]
[Annotator "ChessBase"]
[PlyCount "80"]
[EventDate "2017.10.20"]
[EventType "swiss"]
[EventCountry "ZAM"]
[TimeControl "40/5400+30:1800+30"]

1. d4 Nf6 2. Nf3 e6 3. g3 c5 4. Bg2 cxd4 5. O-O d5 6. Nxd4 e5 7. Nf3 Nc6 8. c4
d4 9. e3 Be7 10. exd4 exd4 11. b3 O-O 12. Bb2 Bc5 13. Na3 Bg4 14. h3 Bh5 15. g4
Bg6 16. Nb5 Qb6 17. b4 Nxb4 18. Bxd4 Nc2 19. Bxc5 Qxc5 20. Rb1 Rad8 21. Qc1 a6
22. Nc3 Qxc4 23. Rb3 Rfe8 24. Nd2 Qf4 25. Nde4 Qxc1 26. Nxf6+ gxf6 27. Rxc1 b5
28. Rb2 Ne1 29. Re2 Rxe2 30. Nxe2 Nxg2 31. Kxg2 Rd2 32. Ng3 Rxa2 33. h4 Bc2 34.
Re1 Kf8 35. Nh5 f5 36. g5 Be4+ 37. Kg3 b4 38. Nf6 b3 39. f3 b2 40. fxe4 Ra1 0-1

[Event "Henry Chilufya Mem 2017"]
[Site "Mansa"]
[Date "2017.10.22"]
[Round "5"]
[White "Greenfeld, Alon"]
[Black "Gupta, Abhijeet"]
[Result "1/2-1/2"]
[ECO "A48"]
[WhiteElo "2509"]
[BlackElo "2619"]
[Annotator "ChessBase"]
[PlyCount "237"]
[EventDate "2017.??.??"]
[EventType "swiss"]
[EventCountry "ZAM"]
[SourceTitle "playchess.com"]
[Source "ChessBase"]
[SourceQuality "1"]
[TimeControl "40/5400+30:1800+30"]

1. d4 {[%emt 0:02:02]} Nf6 {[%emt 0:00:03]} 2. Nf3 {[%emt 0:01:44]} g6 {
[%emt 0:01:30]} 3. c4 {[%emt 0:00:48]} Bg7 {[%emt 0:00:04]} 4. Nc3 {[%emt 0:00:
25]} d5 {[%emt 0:00:05]} 5. cxd5 {[%emt 0:00:18]} Nxd5 {[%emt 0:00:05]} 6. Qa4+
{[%emt 0:00:09]} Bd7 {[%emt 0:01:24]} 7. Qa3 {[%emt 0:02:39]} Bc6 {[%emt 0:04:
51]} 8. e3 {[%emt 0:02:47]} O-O {[%emt 0:07:48]} 9. Be2 {[%emt 0:03:59]} Nd7 {
[%emt 0:03:39]} 10. O-O {[%emt 0:02:18]} e5 {[%emt 0:01:21]} 11. Nxd5 {[%emt 0:
29:55]} Bxd5 {[%emt 0:00:04]} 12. dxe5 {[%emt 0:00:09]} c6 {[%emt 0:02:30]} 13.
Rd1 {[%emt 0:04:22]} Qc7 {[%emt 0:00:59]} 14. e4 {[%emt 0:02:28]} Bxe4 {
[%emt 0:00:08]} 15. e6 {[%emt 0:08:03]} fxe6 {[%emt 0:00:05]} 16. Ng5 {[%emt 0:
01:18]} Bd5 {[%emt 0:00:16]} 17. Qh3 {[%emt 0:06:46]} Nf6 {[%emt 0:00:08]} 18.
Bg4 {[%emt 0:00:40]} Rae8 {[%emt 0:08:10]} 19. Be3 {[%emt 0:03:31]} Qe7 {
[%emt 0:00:24]} 20. Rac1 {[%emt 0:06:41]} b6 {[%emt 0:00:09]} 21. Rxd5 {
[%emt 0:00:57]} exd5 {[%emt 0:02:26]} 22. Rxc6 {[%emt 0:00:26]} Qb4 {[%emt 0:
02:06]} 23. Be6+ {[%emt 0:00:23]} Kh8 {[%emt 0:00:12]} 24. g3 {[%emt 0:01:52]}
d4 {[%emt 0:04:17]} 25. Bf4 {[%emt 0:01:17]} Nh5 {[%emt 0:00:34]} 26. Nf7+ {
[%emt 0:04:27]} Rxf7 {[%emt 0:09:12]} 27. Bxf7 {[%emt 0:00:09]} Qe1+ {[%emt 0:
02:34]} 28. Qf1 {[%emt 0:00:05]} Nxf4 {[%emt 0:00:16]} 29. gxf4 {[%emt 0:00:20]
} Qxf1+ {[%emt 0:00:08]} 30. Kxf1 {[%emt 0:00:04]} Rf8 {[%emt 0:00:47]} 31. Bc4
{[%emt 0:01:34]} Rxf4 {[%emt 0:01:55]} 32. Rc7 {[%emt 0:00:25]} a5 {[%emt 0:01:
44]} 33. Rc6 {[%emt 0:00:21]} Bf6 {[%emt 0:10:06]} 34. Rxb6 {[%emt 0:00:49]} d3
{[%emt 0:00:58]} 35. Bxd3 {[%emt 0:05:41]} Bd4 {[%emt 0:00:03]} 36. Rd6 {
[%emt 0:01:12]} Rxf2+ {[%emt 0:00:13]} 37. Ke1 {[%emt 0:00:18]} Rf4 {[%emt 0:
00:04]} 38. b3 {[%emt 0:04:21]} Bc3+ {[%emt 0:00:41]} 39. Kd1 {[%emt 0:00:30]}
Rf2 {[%emt 0:00:26]} 40. h3 {[%emt 0:00:36]} Rxa2 {[%emt 0:31:14]} 41. Bc4 {
[%emt 0:30:42]} Rh2 {[%emt 0:02:43]} 42. Rd8+ {[%emt 0:00:13]} Kg7 {[%emt 0:00:
04]} 43. Rd7+ {[%emt 0:00:06]} Kh6 {[%emt 0:00:03]} 44. Bg8 {[%emt 0:01:05]}
Bg7 {[%emt 0:00:15]} 45. Be6 {[%emt 0:00:26]} Rf2 {[%emt 0:01:20]} 46. Rf7 {
[%emt 0:00:50]} Ra2 {[%emt 0:01:49]} 47. Ra7 {[%emt 0:00:21]} Bd4 {[%emt 0:01:
23]} 48. Rd7 {[%emt 0:00:08]} Bc3 {[%emt 0:00:39]} 49. Bg8 {[%emt 0:01:02]} Bg7
{[%emt 0:00:27]} 50. Ra7 {[%emt 0:00:25]} Rh2 {[%emt 0:07:32]} 51. Be6 {
[%emt 0:00:10]} Bc3 {[%emt 0:00:13]} 52. Bg8 {[%emt 0:00:34]} Kg5 {[%emt 0:03:
24]} 53. Rxh7 {[%emt 0:00:17]} Bb4 {[%emt 0:00:04]} 54. Bc4 {[%emt 0:01:08]}
Kf4 {[%emt 0:00:31]} 55. Rh8 {[%emt 0:01:08]} g5 {[%emt 0:00:24]} 56. Be2 {
[%emt 0:01:17]} Ke3 {[%emt 0:01:51]} 57. Re8+ {[%emt 0:01:04]} Kd4 {[%emt 0:00:
03]} 58. Bg4 {[%emt 0:00:36]} Rb2 {[%emt 0:02:28]} 59. Be6 {[%emt 0:00:32]} Rf2
{[%emt 0:01:41]} 60. Rc8 {[%emt 0:00:31]} Kd3 {[%emt 0:01:56]} 61. Kc1 {
[%emt 0:00:02]} Be7 {[%emt 0:05:32]} 62. Kb1 {[%emt 0:00:30]} Bf6 {[%emt 0:00:
59]} 63. Rc2 {[%emt 0:00:07]} Rf3 {[%emt 0:01:30]} 64. Bc4+ {[%emt 0:00:45]}
Kd4 {[%emt 0:00:26]} 65. Be6 {[%emt 0:00:49]} Kd3 {[%emt 0:02:40]} 66. Bg4 {
[%emt 0:00:27]} Rg3 {[%emt 0:00:55]} 67. Bf5+ {[%emt 0:00:15]} Ke3 {[%emt 0:00:
14]} 68. Ka2 {[%emt 0:01:05]} Rg1 {[%emt 0:00:18]} 69. Ka3 {[%emt 0:00:19]}
Ra1+ {[%emt 0:00:37]} 70. Ra2 {[%emt 0:00:01]} Rf1 {[%emt 0:01:03]} 71. Bg4 {
[%emt 0:00:14]} Rf4 {[%emt 0:00:46]} 72. Rc2 {[%emt 0:00:25]} Be7+ {[%emt 0:00:
09]} 73. Ka2 {[%emt 0:00:12]} Kd3 {[%emt 0:00:16]} 74. Kb1 {[%emt 0:00:28]} Bb4
{[%emt 0:00:56]} 75. Be2+ {[%emt 0:00:15]} Ke3 {[%emt 0:00:24]} 76. Bg4 {
[%emt 0:00:10]} Rf1+ {[%emt 0:00:50]} 77. Rc1 {[%emt 0:00:10]} Rf2 {[%emt 0:00:
02]} 78. Rc2 {[%emt 0:00:11]} Bd2 {[%emt 0:00:04]} 79. Rc5 {[%emt 0:01:11]} Kd3
{[%emt 0:00:33]} 80. Bf5+ {[%emt 0:00:31]} Ke3 {[%emt 0:01:04]} 81. Rd5 {
[%emt 0:00:40]} Bb4 {[%emt 0:00:37]} 82. Re5+ {[%emt 0:00:44]} Kd4 {[%emt 0:00:
24]} 83. Re4+ {[%emt 0:00:17]} Kd5 {[%emt 0:00:15]} 84. Bh7 {[%emt 0:00:27]}
Rf3 {[%emt 0:00:36]} 85. Rg4 {[%emt 0:00:30]} Rxb3+ {[%emt 0:00:50]} 86. Kc2 {
[%emt 0:00:43]} Rc3+ {[%emt 0:00:03]} 87. Kb2 {[%emt 0:00:27]} Rxh3 {[%emt 0:
00:13]} 88. Rxg5+ {[%emt 0:00:28]} Kd4 {[%emt 0:00:19]} 89. Rg4+ {[%emt 0:00:
09]} Kc5 {[%emt 0:00:30]} 90. Rg5+ {[%emt 0:00:36]} Kb6 {[%emt 0:00:06]} 91.
Bc2 {[%emt 0:00:30]} Bc3+ {[%emt 0:00:03]} 92. Ka2 {[%emt 0:00:06]} Bd4 {
[%emt 0:00:37]} 93. Rd5 {[%emt 0:00:13]} Bc5 {[%emt 0:00:24]} 94. Rd3 {[%emt 0:
01:01]} Rh2 {[%emt 0:00:03]} 95. Rb3+ {[%emt 0:00:35]} Bb4 {[%emt 0:00:30]} 96.
Rb2 {[%emt 0:00:16]} Kc5 {[%emt 0:01:16]} 97. Ba4 {[%emt 0:00:35]} Rh3 {
[%emt 0:00:06]} 98. Rc2+ {[%emt 0:00:19]} Kd4 {[%emt 0:00:40]} 99. Bb3 {
[%emt 0:00:13]} Rh1 {[%emt 0:00:38]} 100. Kb2 {[%emt 0:00:32]} Rh3 {[%emt 0:00:
14]} 101. Rg2 {[%emt 0:00:59]} Ke3 {[%emt 0:00:52]} 102. Kc2 {[%emt 0:00:55]}
Bd6 {[%emt 0:00:29]} 103. Rd2 {[%emt 0:00:38]} Rh6 {[%emt 0:00:12]} 104. Rd3+ {
[%emt 0:00:14]} Ke4 {[%emt 0:00:03]} 105. Bd5+ {[%emt 0:00:15]} Ke5 {[%emt 0:
00:05]} 106. Bb3 {[%emt 0:00:38]} Bb4 {[%emt 0:00:02]} 107. Re3+ {[%emt 0:00:
36]} Kd4 {[%emt 0:00:23]} 108. Rd3+ {[%emt 0:00:11]} Ke4 {[%emt 0:00:02]} 109.
Bd5+ {[%emt 0:00:09]} Ke5 {[%emt 0:00:03]} 110. Kb3 {[%emt 0:00:19]} Bc5 {
[%emt 0:00:44]} 111. Kc4 {[%emt 0:00:52]} Bf2 {[%emt 0:00:19]} 112. Kb5 {
[%emt 0:00:21]} Bd4 {[%emt 0:01:17]} 113. Bf3 {[%emt 0:00:27]} Bb6 {[%emt 0:00:
38]} 114. Bc6 {[%emt 0:00:50]} Bf2 {[%emt 0:01:15]} 115. Bf3 {[%emt 0:00:11]}
Bb6 {[%emt 0:00:36]} 116. Bc6 {[%emt 0:00:08]} Bd4 {[%emt 0:00:42]} 117. Bf3 {
[%emt 0:00:06]} Rd6 {[%emt 0:00:02]} 118. Ka4 {[%emt 0:01:44]} Rd7 {[%emt 0:00:
27]} 119. Rb3 {[%emt 0:00:54]} 1/2-1/2

[Event "Henry Chilufya Mem 2017"]
[Site "Mansa"]
[Date "2017.10.22"]
[Round "5"]
[White "Mwali, Chitumbo"]
[Black "Phiri, Richmond"]
[Result "1-0"]
[ECO "A14"]
[WhiteElo "2334"]
[BlackElo "2290"]
[Annotator "NA"]
[PlyCount "53"]
[EventDate "2017.??.??"]
[EventType "swiss"]
[EventCountry "ZAM"]
[SourceTitle "playchess.com"]
[Source "ChessBase"]
[SourceQuality "1"]
[TimeControl "40/5400+30:1800+30"]

1. c4 {[%emt 0:01:46]} e6 {[%emt 0:00:39]} 2. g3 {[%emt 0:00:23]} d5 {[%emt 0:
00:15]} 3. Bg2 {[%emt 0:01:54]} Nf6 {[%emt 0:00:09]} 4. Nf3 {[%emt 0:00:38]}
Be7 {[%emt 0:08:00]} 5. O-O {[%emt 0:05:16]} O-O {[%emt 0:03:58]} 6. d4 {
[%emt 0:05:21]} dxc4 {[%emt 0:05:16]} 7. Ne5 {[%emt 0:04:56]} Nc6 {[%emt 0:04:
17]} 8. Bxc6 {[%emt 0:00:36]} bxc6 {[%emt 0:00:07]} 9. Nxc6 {[%emt 0:00:37]}
Qe8 {[%emt 0:03:08]} 10. Nxe7+ {[%emt 0:02:20]} Qxe7 {[%emt 0:00:15]} 11. Qa4 {
[%emt 0:01:59]} c5 {[%emt 0:03:30]} 12. Qxc4 {[%emt 0:00:26]} cxd4 {[%emt 0:00:
08]} 13. Qxd4 {[%emt 0:00:10]} e5 {[%emt 0:11:50] LiveBook: 56 Games} 14. Qh4
$11 {[%emt 0:00:09]} Bb7 {[%emt 0:00:16]} 15. Bg5 {[%emt 0:03:36]} Rad8 {
[%emt 0:11:07]} 16. Nc3 {[%emt 0:07:40]} Rd4 {[%emt 0:05:44]} 17. e4 {[%emt 0:
00:54]} Qe6 {[%emt 0:04:00]} 18. Bxf6 {[%emt 0:03:34]} gxf6 {[%emt 0:00:28]}
19. Rfe1 {[%emt 0:02:33]} Rd2 {[%emt 0:09:51]} 20. Re3 {[%emt 0:02:18]} Rxb2 {
[%emt 0:04:00]} 21. Rd1 {[%emt 0:02:15]} f5 {[%emt 0:05:35]} 22. Rf3 {[%emt 0:
01:56]} f4 {[%emt 0:05:13]} 23. gxf4 {[%emt 0:01:05]} exf4 {[%emt 0:00:36]} 24.
Qxf4 {[%emt 0:01:02]} f6 {[%emt 0:02:38]} 25. Rg3+ {[%emt 0:00:08]} Kh8 {
[%emt 0:00:42]} 26. Qc7 {[%emt 0:00:40]} Rg8 {[%emt 0:01:43]} 27. Rd8 {[%emt 0:
00:45]} 1-0

[Event "Henry Chilufya Mem 2017"]
[Site "Mansa"]
[Date "2017.10.22"]
[Round "5"]
[White "Wanyama, Harold"]
[Black "Bwalya, Gillan"]
[Result "0-1"]
[ECO "A05"]
[WhiteElo "2290"]
[BlackElo "2291"]
[Annotator "NA"]
[PlyCount "77"]
[EventDate "2017.??.??"]
[EventType "swiss"]
[EventCountry "ZAM"]
[SourceTitle "playchess.com"]
[Source "ChessBase"]
[SourceQuality "1"]
[TimeControl "40/5400+30:1800+30"]

1. Nf3 Nf6 2. c4 {[%emt 0:01:21]} e6 {[%emt 0:01:01]} 3. b3 {[%emt 0:00:23]} d5
{[%emt 0:00:47]} 4. Bb2 {[%emt 0:00:07]} Be7 {[%emt 0:00:36]} 5. g3 {[%emt 0:
00:14]} O-O {[%emt 0:00:12]} 6. Bg2 {[%emt 0:00:11]} Nbd7 {[%emt 0:02:27]} 7.
O-O {[%emt 0:00:43]} b6 {[%emt 0:00:34]} 8. cxd5 {[%emt 0:00:25]} exd5 {
[%emt 0:00:04]} 9. Nd4 {[%emt 0:02:11]} Bb7 {[%emt 0:00:07]} 10. Nf5 {[%emt 0:
00:09] A14: English Opening: 1...e6 with b3 by White} Re8 {[%emt 0:00:08]} 11.
Nxe7+ {[%emt 0:00:31]} Qxe7 {[%emt 0:00:03]} 12. Nc3 {[%emt 0:00:48]} c5 {
[%emt 0:04:18]} (12... Ne4 13. Nb5 Ndf6 14. d3 Nd6 15. Bxf6 gxf6 16. Nc3 d4 17.
Bxb7 Nxb7 {1-0 (38) Dzagnidze,N (2559)-Goriatchkin,J (2318) Doha 2015}) 13. d4
{[%emt 0:00:39]} Rad8 {[%emt 0:02:24]} 14. Re1 {[%emt 0:00:55]} Ne4 {[%emt 0:
06:11]} 15. dxc5 $146 {[%emt 0:01:40]} ({Predecessor:} 15. e3 Qf6 16. Qc2 cxd4
17. Nxe4 dxe4 {1-0 (76) Duijker,R (2269)-Goossens,E (2187) Germany 2015}) 15...
Ndxc5 {[%emt 0:01:50]} 16. Qd4 {[%emt 0:25:21]} Ne6 {[%emt 0:05:16]} 17. Qa4 {
[%emt 0:01:41]} a6 {[%emt 0:04:02]} 18. Nxe4 {[%emt 0:04:36]} dxe4 {[%emt 0:01:
04]} 19. Rad1 {[%emt 0:00:33]} h6 {[%emt 0:15:58]} 20. Qa3 {[%emt 0:05:45]} Qc7
$11 {[%emt 0:05:19]} 21. Rc1 {[%emt 0:02:50]} Qd7 {[%emt 0:02:41]} 22. Qb4 {
[%emt 0:01:05]} b5 {[%emt 0:01:25]} 23. Qa5 {[%emt 0:05:00]} e3 {[%emt 0:13:01]
} 24. f3 {[%emt 0:13:26]} Qd6 {[%emt 0:03:15]} 25. Rc2 {[%emt 0:16:28]} h5 {
[%emt 0:07:01]} 26. Rec1 {[%emt 0:09:34]} h4 {[%emt 0:00:50]} 27. Qe1 {[%emt 0:
01:47]} hxg3 {[%emt 0:05:03]} 28. hxg3 {[%emt 0:02:37]} b4 {[%emt 0:01:06]} 29.
Bh3 {[%emt 0:01:17]} Ng5 {[%emt 0:00:11]} 30. Kg2 {[%emt 0:00:31]} a5 {[%emt 0:
05:16]} 31. Bf5 {[%emt 0:01:49]} Qd5 {[%emt 0:01:55]} 32. Bg4 {[%emt 0:00:41]}
Qd6 {[%emt 0:02:28]} 33. Qh1 {[%emt 0:00:22]} Qg6 {[%emt 0:01:05]} 34. Qh4 {
[%emt 0:00:27]} Rd2 {[%emt 0:00:36]} 35. Rh1 Nh7 36. Rxd2 exd2 37. e4 Qh6 38.
Qxh6 gxh6 39. Rd1 0-1

[Event "Henry Chilufya Mem 2017"]
[Site "Mansa"]
[Date "2017.10.22"]
[Round "6"]
[White "Phiri, Richmond"]
[Black "Wanyama, Harold"]
[Result "1-0"]
[ECO "E61"]
[WhiteElo "2290"]
[BlackElo "2290"]
[Annotator "ChessBase"]
[PlyCount "77"]
[EventDate "2017.??.??"]
[EventType "swiss"]
[EventCountry "ZAM"]
[SourceTitle "playchess.com"]
[Source "ChessBase"]
[SourceQuality "1"]
[TimeControl "40/5400+30:1800+30"]

1. d4 {[%emt 0:03:18]} Nf6 {[%emt 0:00:13]} 2. c4 {[%emt 0:00:02]} g6 {[%emt 0:
00:15]} 3. Nc3 {[%emt 0:00:04]} Bg7 {[%emt 0:00:07]} 4. Nf3 {[%emt 0:01:29]}
O-O {[%emt 0:00:25]} 5. Bf4 {[%emt 0:00:27]} c5 {[%emt 0:01:18]} 6. e3 {
[%emt 0:00:15]} Nc6 {[%emt 0:08:26]} 7. d5 {[%emt 0:19:28]} Na5 {[%emt 0:00:30]
} 8. e4 {[%emt 0:00:07]} d6 {[%emt 0:00:30]} 9. h3 {[%emt 0:16:55]} a6 {
[%emt 0:04:55]} 10. Be2 {[%emt 0:07:27]} b5 {[%emt 0:01:25]} 11. cxb5 {[%emt 0:
00:25]} axb5 {[%emt 0:00:06]} 12. Bxb5 {[%emt 0:00:46]} Qb6 {[%emt 0:00:07]}
13. a4 {[%emt 0:00:51]} Ba6 {[%emt 0:00:38]} 14. O-O {[%emt 0:00:12]} Bxb5 {
[%emt 0:00:31]} 15. axb5 Nc4 {[%emt 0:01:18]} 16. Qe2 {[%emt 0:06:06]} Na5 {
[%emt 0:11:10]} 17. Ra3 {[%emt 0:00:23]} Qb7 {[%emt 0:05:24]} 18. Nd2 {[%emt 0:
04:05]} Nh5 {[%emt 0:18:42]} 19. Be3 {[%emt 0:01:36]} Ra7 {[%emt 0:05:28]} 20.
Rfa1 {[%emt 0:02:47]} Rfa8 {[%emt 0:00:12]} 21. g4 {[%emt 0:02:50]} Nf6 {
[%emt 0:01:31]} 22. Nc4 {[%emt 0:13:19]} Nxc4 {[%emt 0:01:27]} 23. Qxc4 {
[%emt 0:00:24]} Nd7 {[%emt 0:01:17]} 24. Rxa7 {[%emt 0:01:50]} Rxa7 {[%emt 0:
00:07]} 25. Rxa7 {[%emt 0:00:10]} Qxa7 {[%emt 0:00:44]} 26. Qa4 {[%emt 0:00:32]
} Qxa4 {[%emt 0:07:01]} 27. Nxa4 {[%emt 0:00:19]} Kf8 {[%emt 0:00:16]} 28. Bd2
{[%emt 0:01:53]} Ke8 {[%emt 0:03:16]} 29. Ba5 {[%emt 0:00:26]} Bd4 {[%emt 0:06:
05]} 30. b6 {[%emt 0:02:04]} c4 {[%emt 0:10:37]} 31. b7 {[%emt 0:00:12]} Nb8 {
[%emt 0:00:11]} 32. Bc7 {[%emt 0:02:32]} Na6 {[%emt 0:00:31]} 33. Bb6 {[%emt 0:
01:37]} Bxb6 {[%emt 0:01:03]} 34. Nxb6 {[%emt 0:00:09]} Kd8 {[%emt 0:00:06]}
35. Na8 {[%emt 0:00:57]} e6 {[%emt 0:02:08]} 36. Kf1 {[%emt 0:00:19]} exd5 {
[%emt 0:00:09]} 37. exd5 {[%emt 0:00:23]} Ke7 {[%emt 0:00:21]} 38. g5 {[%emt 0:
00:37]} f6 {[%emt 0:00:42]} 39. f4 {[%emt 0:00:05]} 1-0